fUSD/lending_fUSD_20240317
["ID","MTS","AMOUNT","RATE_DAILY","PERIOD"]
[319297127,1710643849400,-500.0,0.00015498,2]
[319297128,1710643849410,-500.0,0.00015498,2]
[319297129,1710643849419,-500.0,0.00015498,2]
[319297130,1710643849429,-500.0,0.00015498,2]
[319297131,1710643849438,-249.36136534,0.00015498,2]
[319297132,1710643849448,-1244.56,0.00015498,2]
[319297133,1710643849458,-1244.56,0.00015498,2]
[319297134,1710643849472,-1244.56,0.00015498,2]
[319297135,1710643849481,-1244.56,0.00015498,2]
[319297136,1710643849491,-1244.56,0.00015498,2]
[319297137,1710643849500,-1244.56,0.00015498,2]
[319297138,1710643849510,-1244.56,0.00015498,2]
[319297139,1710643849520,-887.36,0.00015498,2]
[319297140,1710643849530,-887.36,0.00015498,2]
[319297141,1710643849539,-887.36,0.00015498,2]
[319297142,1710643849549,-887.36,0.00015498,2]
[319297143,1710643849559,-887.36,0.00015498,2]
[319297144,1710643849569,-887.36,0.00015498,2]
[319297145,1710643849579,-887.36,0.00015498,2]
[319297146,1710643849588,-202.60590406,0.00015499,2]
[319297147,1710643849598,-2290.88842714,0.00015499,2]
[319297148,1710643849608,-31075.56556543,0.00015499,2]
[319297149,1710643849617,-1032479.29581019,0.00015499,2]
[319297150,1710643849643,-593.56349087,0.00015497,2]
[319297151,1710643849663,-1415.68650913,0.00015497,2]
[319297152,1710643849673,-375.52,0.00015497,2]
[319297153,1710643849682,-260332.04961018,0.00015499,2]
[319297154,1710643849846,-867.08655028,0.000154,2]
[319297155,1710643849856,-502.87953021,0.00015495,2]
[319297156,1710643849865,-162.84006807,0.00015498,2]
[319297157,1710643849877,-562.08335525,0.00015498,2]
[319297158,1710643849888,-1284.32657668,0.00015498,2]
[319297159,1710643849898,-2009.25,0.00015498,2]
[319297160,1710643849907,-922.85295562,0.00015498,2]
[319297161,1710643849938,-375.6,0.00015498,2]
[319297162,1710643850297,-710.79704438,0.00015498,2]
[319297163,1710643850307,-268.14466852,0.00015498,2]
[319297164,1710643850318,-695.40270437,0.00015498,2]
[319297165,1710643850329,-1045.70262711,0.00015498,2]
[319297166,1710643850339,-1419.36977289,0.00015498,2]
[319297167,1710643850350,-268.49876848,0.00015498,2]
[319297168,1710643850370,-321.38145863,0.00015498,2]
[319297169,1710643850380,-2009.25,0.00015498,2]
[319297170,1710643850389,-1239.23547902,0.00015498,2]
[319297171,1710643850400,-770.01452098,0.00015498,2]
[319297172,1710643850410,-13717.93576198,0.00015499,2]
[319297173,1710643850421,-683.20661251,0.00015499,2]
[319297174,1710643850690,-1872.63,0.000146,2]
[319297175,1710643850700,-500.0,0.00015495,2]
[319297176,1710643850710,-514.75767196,0.00015495,2]
[319297177,1710643850725,-500.0,0.00015495,2]
[319297178,1710643850735,-500.0,0.00015495,2]
[319297179,1710643850745,-4032.14758123,0.00015497,2]
[319297180,1710643850755,-363.02687572,0.00015497,2]
[319297181,1710643850766,-215941.33893703,0.00015499,2]
[319297182,1710643881672,1762.73028619,0.00011624,2]
[319297183,1710643897586,1664.40250957,0.00011609,2]
[319297184,1710643910866,200.0,0.00015422,30]
[319297185,1710643910893,200.0,0.00015422,30]
[319297186,1710643910929,200.0,0.00015422,30]
[319297187,1710643910970,200.0,0.00015422,30]
[319297188,1710643911023,200.0,0.00015422,30]
[319297189,1710643918712,1000.0,0.0001722,14]
[319297190,1710644047005,164.13,0.00011431,2]
[319297192,1710644102578,363.45198863,0.00011431,2]
[319297193,1710644104509,155.0,0.00011431,2]
[319297194,1710644105282,7460.05765804,0.00011431,2]
[319297195,1710644109062,19555.90483113,0.00011431,2]
[319297198,1710644115169,405.96324163,0.00011088,2]
[319297199,1710644117826,290.96719633,0.00011431,2]
[319297200,1710644118578,365.97507148,0.00011431,2]
[319297201,1710644120507,155.2060657,0.00011431,2]
[319297202,1710644121228,7476.48995993,0.00011431,2]
[319297203,1710644123064,3894.94766574,0.00011431,2]
[319297206,1710644129375,406.79493688,0.00011088,2]
[319297207,1710644137817,291.49948324,0.00011431,2]
[319297209,1710644171653,500.0,0.000242,120]
[319297210,1710644185307,500.0,0.000242,120]
[319297211,1710644200415,500.0,0.000242,120]
[319297212,1710644213598,2500.0,0.000242,120]
[319297213,1710644215054,534.67,0.00012136,2]
[319297218,1710644657245,618.73745031,0.00012408,2]
[319297219,1710644675544,507.93,0.00011234,2]
[319297220,1710644703893,1724.977473,0.00012443,2]
[319297221,1710644758719,1957.83685208,0.00012404,2]
[319297222,1710644816177,484.86201685,0.000125,2]
[319297223,1710644828076,513.22565398,0.000125,2]
[319297224,1710644828713,239.41044962,0.000125,2]
[319297241,1710645031528,-155.0,0.000124,2]
[319297243,1710645031538,-155.0,0.000124,2]
[319297244,1710645031548,-156.29969797,0.00012401,2]
[319297246,1710645031558,-503.1568274,0.00012497,2]
[319297248,1710645031570,-3367.93087916,0.00012497,2]
[319297250,1710645031582,-919.32315803,0.00012497,2]
[319297252,1710645031601,-2298.23101152,0.00012497,2]
[319297254,1710645031613,-753.66321503,0.00012497,2]
[319297255,1710645031629,-756.27288357,0.00012497,2]
[319297256,1710645031649,-5565.89,0.00012497,2]
[319297257,1710645031661,-353.25739166,0.00012497,2]
[319297258,1710645031673,-2298.33629159,0.00012497,2]
[319297259,1710645031685,-6366.07113906,0.00012497,2]
[319297260,1710645031695,-12739.39299961,0.00012498,2]
[319297261,1710645031705,-150.0,0.00012499,2]
[319297262,1710645031715,-300.0,0.00012499,2]
[319297263,1710645031724,-289.52828105,0.000125,2]
[319297264,1710645031734,-355.87574156,0.00012673,2]
[319297265,1710645031744,-1000.0,0.00012978,2]
[319297266,1710645031753,-544.64676788,0.00013088,2]
[319297267,1710645031763,-250.0,0.00013131,2]
[319297268,1710645031773,-9999.99,0.00013131,2]
[319297269,1710645031783,-1122.86,0.0001325,2]
[319297270,1710645031793,-362.26,0.0001325,2]
[319297271,1710645031802,-612.05,0.0001325,2]
[319297272,1710645031812,-4377.32507084,0.0001325,2]
[319297273,1710645031823,-5399.32492916,0.0001325,2]
[319297274,1710645031833,-179.27,0.0001325,2]
[319297275,1710645031842,-590.96,0.00013253,2]
[319297276,1710645031853,-2000.0,0.00013296,2]
[319297277,1710645031863,-499.99,0.00013296,2]
[319297278,1710645031873,-169.72,0.00013315,2]
[319297279,1710645031884,-412.10962838,0.00013336,2]
[319297280,1710645031900,-1067.57065551,0.00013336,2]
[319297281,1710645031915,-22420.31971611,0.00013336,2]
[319297282,1710645031925,-156.29969797,0.00013367,2]
[319297283,1710645031935,-409.04,0.00013422,2]
[319297284,1710645031945,-169.91,0.00013484,2]
[319297285,1710645031957,-507.93,0.00013498,2]
[319297286,1710645031967,-555.18,0.00013617,2]
[319297287,1710645031977,-23333.51511028,0.00013689,2]
[319297288,1710645031988,-1920.01,0.00013699,2]
[319297289,1710645031998,-177.94,0.00013699,2]
[319297290,1710645032009,-191.6,0.00013699,2]
[319297291,1710645032019,-646.67,0.00013699,2]
[319297293,1710645032029,-250.0,0.00013699,2]
[319297295,1710645032040,-169.92,0.00013843,2]
[319297296,1710645032050,-150.99,0.00013843,2]
[319297297,1710645032059,-2764.62,0.00013888,2]
[319297298,1710645032068,-154.02,0.00014018,2]
[319297299,1710645032078,-1522.20564772,0.0001407,2]
[319297300,1710645032093,-383.76435228,0.0001407,2]
[319297301,1710645032103,-1194.5,0.0001407,2]
[319297302,1710645032113,-717.9580569,0.0001407,2]
[319297303,1710645032134,-257.544789,0.0001407,2]
[319297304,1710645032147,-24.4871541,0.0001407,2]
[319297305,1710645032157,-156.29969797,0.00014333,2]
[319297306,1710645032168,-291.25314793,0.00014355,2]
[319297307,1710645032181,-301.48,0.00014355,2]
[319297308,1710645032193,-279.94002453,0.00014355,2]
[319297309,1710645032204,-156.79,0.00014393,2]
[319297310,1710645032214,-3.26997547,0.00014431,2]
[319297311,1710645032225,-811.05669613,0.00014431,2]
[319297312,1710645032254,-5136.0833284,0.00014431,2]
[319297313,1710645032263,-449.35019207,0.00014474,2]
[319297314,1710645032272,-11128.92,0.00014504,2]
[319297315,1710645032282,-815.3,0.00014741,2]
[319297316,1710645032291,-590.96,0.0001491,2]
[319297317,1710645032301,-169.72,0.00014979,2]
[319297318,1710645032312,-5888.72471171,0.00015,2]
[319297319,1710645032322,-33239.79469902,0.00015,2]
[319297320,1710645032331,-2550.0,0.00015,4]
[319297321,1710645032341,-155.0,0.00015,2]
[319297322,1710645032351,-3625.0,0.000151,2]
[319297323,1710645032362,-253.60160253,0.000151,2]
[319297324,1710645032372,-1000.0,0.000151,2]
[319297325,1710645032382,-409.04,0.000151,2]
[319297326,1710645032395,-4762.0,0.00015133,2]
[319297327,1710645032405,-42878.0,0.00015133,2]
[319297328,1710645032415,-2426.0,0.00015133,2]
[319297329,1710645032425,-420.27,0.00015178,2]
[319297330,1710645032435,-524.2,0.00015178,2]
[319297331,1710645032446,-233.95,0.00015178,2]
[319297332,1710645032456,-357.08,0.00015178,2]
[319297333,1710645032468,-278.96,0.00015178,2]
[319297334,1710645032477,-79618.25276879,0.00015197,2]
[319297335,1710645032487,-342.83731881,0.000152,2]
[319297336,1710645032496,-185.39103212,0.00015233,2]
[319297337,1710645032505,-354.19980252,0.00015233,2]
[319297338,1710645032516,-354.19980252,0.00015233,2]
[319297339,1710645032525,-354.19980252,0.00015233,2]
[319297340,1710645032534,-354.19980252,0.00015233,2]
[319297341,1710645032543,-354.19980252,0.00015233,2]
[319297342,1710645032553,-354.19980252,0.00015233,2]
[319297343,1710645032562,-249.65614262,0.00015244,2]
[319297344,1710645032572,-156.29969797,0.00015299,2]
[319297345,1710645032583,-787.0,0.000153,2]
[319297346,1710645032594,-152.60935305,0.000153,2]
[319297347,1710645032604,-153.38387994,0.000153,2]
[319297348,1710645032614,-152.60935305,0.00015311,2]
[319297349,1710645032623,-152.60935305,0.00015322,2]
[319297350,1710645032633,-152.60935305,0.00015333,2]
[319297351,1710645032642,-3000.0,0.0001534,2]
[319297352,1710645032651,-152.60935305,0.00015344,2]
[319297353,1710645032660,-152.60935305,0.00015356,2]
[319297354,1710645032670,-152.60935305,0.00015367,2]
[319297355,1710645032679,-200.0,0.00015376,2]
[319297356,1710645032688,-697.056317,0.00015376,2]
[319297357,1710645032698,-200.0,0.00015376,2]
[319297358,1710645032715,-152.60935305,0.00015378,2]
[319297359,1710645032727,-3036.97,0.00015378,2]
[319297360,1710645032737,-50215.1658,0.0001538,2]
[319297361,1710645032747,-152.60935305,0.00015389,2]
[319297362,1710645032756,-150.97332357,0.00015395,2]
[319297363,1710645032766,-219.02245448,0.00015398,2]
[319297364,1710645032775,-174.60454533,0.00015398,2]
[319297365,1710645032785,-155.44511244,0.00015398,2]
[319297366,1710645032795,-373.60357031,0.00015398,2]
[319297367,1710645032804,-394.41925954,0.00015398,2]
[319297368,1710645032814,-155.49794433,0.00015398,2]
[319297369,1710645032823,-230.44693586,0.00015398,2]
[319297370,1710645032833,-633.87474151,0.00015398,2]
[319297371,1710645032843,-1317.11031731,0.00015398,2]
[319297372,1710645032852,-256.28333759,0.00015398,2]
[319297373,1710645032862,-1061.22011843,0.00015398,2]
[319297374,1710645032871,-155.32218103,0.00015398,2]
[319297375,1710645032881,-2345.92490202,0.00015398,2]
[319297376,1710645032890,-155.23516414,0.00015398,2]
[319297377,1710645032900,-528.66852431,0.00015398,2]
[319297378,1710645032909,-235.80040189,0.00015398,2]
[319297379,1710645032919,-248.10498703,0.00015398,2]
[319297380,1710645032928,-238.42635152,0.00015398,2]
[319297381,1710645032938,-155.28985837,0.00015398,2]
[319297382,1710645032948,-155.66810936,0.00015398,2]
[319297383,1710645032957,-1634.50320802,0.00015398,2]
[319297384,1710645032966,-155.44214674,0.00015398,2]
[319297385,1710645032976,-4000.0,0.00015398,2]
[319297386,1710645032985,-166.49671877,0.00015398,2]
[319297387,1710645032994,-464.89028979,0.00015398,2]
[319297388,1710645033004,-263.50586845,0.00015398,2]
[319297389,1710645033013,-500.0,0.00015398,2]
[319297390,1710645033023,-500.0,0.00015398,2]
[319297391,1710645033032,-500.0,0.00015398,2]
[319297392,1710645033041,-500.0,0.00015398,2]
[319297393,1710645033050,-500.0,0.00015398,2]
[319297394,1710645033059,-500.0,0.00015398,2]
[319297395,1710645033068,-500.0,0.00015398,2]
[319297396,1710645033077,-500.0,0.00015398,2]
[319297397,1710645033086,-500.0,0.00015398,2]
[319297398,1710645033096,-500.0,0.00015398,2]
[319297399,1710645033105,-500.0,0.00015398,2]
[319297400,1710645033114,-500.0,0.00015398,2]
[319297401,1710645033124,-500.0,0.00015398,2]
[319297402,1710645033133,-500.0,0.00015398,2]
[319297403,1710645033142,-500.0,0.00015398,2]
[319297404,1710645033151,-500.0,0.00015398,2]
[319297405,1710645033160,-1529.19,0.00015398,2]
[319297406,1710645033169,-1529.19,0.00015398,2]
[319297407,1710645033179,-1529.19,0.00015398,2]
[319297408,1710645033188,-1529.19,0.00015398,2]
[319297409,1710645033197,-500.0,0.00015398,2]
[319297410,1710645033206,-500.0,0.00015398,2]
[319297411,1710645033216,-500.0,0.00015398,2]
[319297412,1710645033225,-500.0,0.00015398,2]
[319297413,1710645033235,-500.0,0.00015398,2]
[319297414,1710645033244,-500.0,0.00015398,2]
[319297415,1710645033253,-500.0,0.00015398,2]
[319297416,1710645033262,-500.0,0.00015398,2]
[319297417,1710645033271,-237.82286066,0.00015398,2]
[319297418,1710645033281,-606.71,0.00015398,2]
[319297419,1710645033290,-662.85,0.00015398,2]
[319297420,1710645033299,-662.85,0.00015398,2]
[319297421,1710645033309,-662.85,0.00015398,2]
[319297422,1710645033318,-662.85,0.00015398,2]
[319297423,1710645033328,-680.89543046,0.00015398,2]
[319297424,1710645033338,-204.32,0.00015398,2]
[319297425,1710645033347,-501.74,0.00015398,2]
[319297426,1710645033357,-501.74,0.00015398,2]
[319297427,1710645033366,-501.74,0.00015398,2]
[319297428,1710645033375,-616.42,0.00015398,2]
[319297429,1710645033388,-501.74,0.00015398,2]
[319297430,1710645033398,-299.0536728,0.00015398,2]
[319297431,1710645033407,-1369.02,0.00015398,2]
[319297432,1710645033416,-1369.02,0.00015398,2]
[319297433,1710645033426,-1369.02,0.00015398,2]
[319297434,1710645033435,-1369.02,0.00015398,2]
[319297435,1710645033445,-500.0,0.00015398,2]
[319297436,1710645033454,-500.0,0.00015398,2]
[319297437,1710645033464,-386.58,0.00015398,2]
[319297438,1710645033474,-500.0,0.00015398,2]
[319297439,1710645033483,-500.0,0.00015398,2]
[319297440,1710645033493,-420.51,0.00015398,2]
[319297441,1710645033502,-500.0,0.00015398,2]
[319297442,1710645033512,-500.0,0.00015398,2]
[319297443,1710645033521,-500.0,0.00015398,2]
[319297444,1710645033531,-500.0,0.00015398,2]
[319297445,1710645033540,-500.0,0.00015398,2]
[319297446,1710645033549,-500.0,0.00015398,2]
[319297447,1710645033558,-500.0,0.00015398,2]
[319297448,1710645033568,-500.0,0.00015398,2]
[319297449,1710645033577,-500.0,0.00015398,2]
[319297450,1710645033586,-500.0,0.00015398,2]
[319297451,1710645033595,-500.0,0.00015398,2]
[319297452,1710645033604,-500.0,0.00015398,2]
[319297453,1710645033613,-500.0,0.00015398,2]
[319297454,1710645033622,-500.0,0.00015398,2]
[319297455,1710645033631,-500.0,0.00015398,2]
[319297456,1710645033640,-500.0,0.00015398,2]
[319297457,1710645033650,-500.0,0.00015398,2]
[319297458,1710645033659,-283.71104073,0.00015398,2]
[319297459,1710645033669,-154.82,0.00015398,2]
[319297460,1710645033678,-500.0,0.00015398,2]
[319297461,1710645033688,-500.0,0.00015398,2]
[319297462,1710645033698,-500.0,0.00015398,2]
[319297463,1710645033707,-500.0,0.00015398,2]
[319297464,1710645033717,-1643.07,0.00015398,2]
[319297465,1710645033726,-1643.07,0.00015398,2]
[319297466,1710645033735,-1643.07,0.00015398,2]
[319297467,1710645033745,-1643.07,0.00015398,2]
[319297468,1710645033755,-2052.52,0.00015398,2]
[319297469,1710645033765,-2052.52,0.00015398,2]
[319297470,1710645033774,-2052.52,0.00015398,2]
[319297471,1710645033784,-2052.52,0.00015398,2]
[319297472,1710645033793,-280692.41189509,0.00015399,2]
[319297473,1710645033802,-163.42991538,0.00015399,2]
[319297474,1710645033812,-500.0,0.00015399,2]
[319297475,1710645033823,-500.0,0.00015399,2]
[319297476,1710645033833,-500.0,0.00015399,2]
[319297477,1710645033844,-500.0,0.00015399,2]
[319297478,1710645033854,-616.27,0.00015399,2]
[319297479,1710645033863,-247.30233516,0.00015399,2]
[319297480,1710645033874,-500.0,0.00015399,2]
[319297481,1710645033884,-506.81453734,0.00015399,2]
[319297482,1710645033893,-500.0,0.00015399,2]
[319297483,1710645033902,-500.0,0.00015399,2]
[319297484,1710645033912,-500.0,0.00015399,2]
[319297485,1710645033921,-500.0,0.00015399,2]
[319297486,1710645033931,-500.0,0.00015399,2]
[319297487,1710645033945,-500.0,0.00015399,2]
[319297488,1710645033955,-500.0,0.00015399,2]
[319297489,1710645033965,-500.0,0.00015399,2]
[319297490,1710645033974,-500.0,0.00015399,2]
[319297491,1710645033984,-183.22,0.00015399,2]
[319297492,1710645033995,-509.85116913,0.00015399,2]
[319297493,1710645034004,-510.31004482,0.00015399,2]
[319297494,1710645034015,-500.0,0.00015399,2]
[319297495,1710645034025,-500.0,0.00015399,2]
[319297496,1710645034034,-258.45,0.00015399,2]
[319297497,1710645034045,-500.0,0.00015399,2]
[319297498,1710645034055,-500.0,0.00015399,2]
[319297499,1710645034064,-500.0,0.00015399,2]
[319297500,1710645034074,-507.9463691,0.00015399,2]
[319297501,1710645034084,-500.0,0.00015399,2]
[319297502,1710645034094,-500.0,0.00015399,2]
[319297503,1710645034104,-500.0,0.00015399,2]
[319297504,1710645034113,-500.0,0.00015399,2]
[319297505,1710645034123,-500.0,0.00015399,2]
[319297506,1710645034133,-500.0,0.00015399,2]
[319297507,1710645034142,-500.0,0.00015399,2]
[319297508,1710645034152,-500.0,0.00015399,2]
[319297509,1710645034162,-500.0,0.00015399,2]
[319297510,1710645034171,-500.0,0.00015399,2]
[319297511,1710645034181,-644.99313095,0.00015399,2]
[319297512,1710645034192,-500.0,0.00015399,2]
[319297513,1710645034202,-503.73295409,0.00015399,2]
[319297514,1710645034212,-396.45839576,0.00015399,2]
[319297515,1710645034222,-500.0,0.00015399,2]
[319297516,1710645034232,-510.93878716,0.00015399,2]
[319297517,1710645034241,-512.63807609,0.00015399,2]
[319297518,1710645034251,-503.07269857,0.00015399,2]
[319297519,1710645034261,-518.27666707,0.00015399,2]
[319297520,1710645034270,-500.0,0.00015399,2]
[319297521,1710645034280,-500.0,0.00015399,2]
[319297522,1710645034290,-509.20632902,0.00015399,2]
[319297523,1710645034299,-500.0,0.00015399,2]
[319297524,1710645034309,-500.0,0.00015399,2]
[319297525,1710645034318,-500.0,0.00015399,2]
[319297526,1710645034328,-500.0,0.00015399,2]
[319297527,1710645034340,-500.0,0.00015399,2]
[319297528,1710645034352,-500.0,0.00015399,2]
[319297529,1710645034361,-342.26521055,0.00015399,2]
[319297530,1710645034372,-504.14233338,0.00015399,2]
[319297531,1710645034384,-500.0,0.00015399,2]
[319297532,1710645034401,-500.0,0.00015399,2]
[319297533,1710645034412,-500.0,0.00015399,2]
[319297534,1710645034423,-500.0,0.00015399,2]
[319297535,1710645034435,-516.37466937,0.00015399,2]
[319297536,1710645034447,-513.16963154,0.00015399,2]
[319297537,1710645034456,-500.0,0.00015399,2]
[319297538,1710645034465,-500.0,0.00015399,2]
[319297539,1710645034483,-500.0,0.00015399,2]
[319297540,1710645034493,-500.0,0.00015399,2]
[319297541,1710645034503,-501.36558041,0.00015399,2]
[319297542,1710645034512,-500.0,0.00015399,2]
[319297543,1710645034523,-508.22797472,0.00015399,2]
[319297544,1710645034533,-415.35079992,0.00015399,2]
[319297545,1710645034543,-512.40356146,0.00015399,2]
[319297546,1710645034552,-387.08,0.00015399,2]
[319297547,1710645034564,-503.82688606,0.00015399,2]
[319297548,1710645034574,-510.8664169,0.00015399,2]
[319297549,1710645034583,-500.0,0.00015399,2]
[319297550,1710645034595,-500.0,0.00015399,2]
[319297551,1710645034606,-500.0,0.00015399,2]
[319297552,1710645034616,-253.73601349,0.00015399,2]
[319297553,1710645034627,-546.80719229,0.00015399,2]
[319297554,1710645034637,-500.0,0.00015399,2]
[319297555,1710645034647,-197.5423562,0.00015399,2]
[319297556,1710645034657,-504.68942085,0.00015399,2]
[319297557,1710645034666,-503.5328183,0.00015399,2]
[319297558,1710645034676,-500.0,0.00015399,2]
[319297559,1710645034685,-151.51530133,0.00015399,2]
[319297560,1710645034695,-500.0,0.00015399,2]
[319297561,1710645034705,-500.0,0.00015399,2]
[319297562,1710645034715,-500.0,0.00015399,2]
[319297563,1710645034725,-500.0,0.00015399,2]
[319297564,1710645034735,-500.0,0.00015399,2]
[319297565,1710645034744,-467.4,0.00015399,2]
[319297566,1710645034755,-510.56046064,0.00015399,2]
[319297567,1710645034764,-500.0,0.00015399,2]
[319297568,1710645034773,-500.0,0.00015399,2]
[319297569,1710645034783,-500.0,0.00015399,2]
[319297570,1710645034793,-247.24214084,0.00015399,2]
[319297571,1710645034802,-500.0,0.00015399,2]
[319297572,1710645034812,-500.0,0.00015399,2]
[319297573,1710645034822,-500.0,0.00015399,2]
[319297574,1710645034832,-561.05,0.00015399,2]
[319297575,1710645034841,-500.0,0.00015399,2]
[319297576,1710645034850,-187.91781203,0.00015399,2]
[319297577,1710645034860,-500.0,0.00015399,2]
[319297578,1710645034870,-500.0,0.00015399,2]
[319297579,1710645034879,-185.94847469,0.00015399,2]
[319297580,1710645034902,-314.05152531,0.00015399,2]
[319297581,1710645034912,-500.0,0.00015399,2]
[319297582,1710645034921,-500.0,0.00015399,2]
[319297583,1710645034930,-500.0,0.00015399,2]
[319297584,1710645034940,-500.0,0.00015399,2]
[319297585,1710645034951,-500.0,0.00015399,2]
[319297586,1710645034962,-500.0,0.00015399,2]
[319297587,1710645034972,-500.0,0.00015399,2]
[319297588,1710645034982,-500.0,0.00015399,2]
[319297589,1710645034991,-343.9127362,0.00015399,2]
[319297623,1710645037550,-354.19980252,0.00015233,2]
[319297626,1710645037559,-500.0,0.00015398,2]
[319297629,1710645037569,-500.0,0.00015398,2]
[319297632,1710645037578,-469.47600961,0.00015398,2]
[319297636,1710645037605,-30.52399039,0.00015398,2]
[319297638,1710645037614,-252.17922685,0.00015398,2]
[319297640,1710645037626,-247.82077315,0.00015398,2]
[319297643,1710645037635,-156.0872638,0.00015399,2]
[319297645,1710645037644,-500.0,0.00015399,2]
[319297647,1710645037654,-500.0,0.00015399,2]
[319297649,1710645037663,-515.73317048,0.00015399,2]
[319297651,1710645037672,-500.0,0.00015399,2]
[319297653,1710645037681,-500.0,0.00015399,2]
[319297655,1710645037690,-500.0,0.00015399,2]
[319297657,1710645037699,-500.0,0.00015399,2]
[319297658,1710645037711,-500.0,0.00015399,2]
[319297660,1710645037720,-500.0,0.00015399,2]
[319297662,1710645037729,-248.4216347,0.00015399,2]
[319297663,1710645037738,-500.0,0.00015399,2]
[319297664,1710645037748,-500.0,0.00015399,2]
[319297665,1710645037757,-500.0,0.00015399,2]
[319297667,1710645037766,-500.0,0.00015399,2]
[319297669,1710645037776,-500.0,0.00015399,2]
[319297671,1710645037785,-500.0,0.00015399,2]
[319297673,1710645037794,-173.28091187,0.00015399,2]
[319297675,1710645037803,-500.0,0.00015399,2]
[319297677,1710645037813,-271.2922461,0.00015399,2]
[319297679,1710645037823,-500.0,0.00015399,2]
[319297681,1710645037832,-500.0,0.00015399,2]
[319297683,1710645037841,-500.0,0.00015399,2]
[319297685,1710645037850,-500.0,0.00015399,2]
[319297687,1710645037859,-299.55219198,0.00015399,2]
[319297689,1710645037868,-500.0,0.00015399,2]
[319297691,1710645037878,-507.34565113,0.00015399,2]
[319297693,1710645037887,-581.1,0.00015399,2]
[319297695,1710645037896,-500.0,0.00015399,2]
[319297697,1710645037905,-570.36,0.00015399,2]
[319297699,1710645037915,-500.0,0.00015399,2]
[319297701,1710645037924,-500.0,0.00015399,2]
[319297703,1710645037933,-500.0,0.00015399,2]
[319297705,1710645037942,-500.0,0.00015399,2]
[319297707,1710645037954,-500.0,0.00015399,2]
[319297709,1710645037963,-500.0,0.00015399,2]
[319297711,1710645037972,-500.0,0.00015399,2]
[319297713,1710645037981,-500.0,0.00015399,2]
[319297715,1710645037990,-500.0,0.00015399,2]
[319297716,1710645037999,-500.0,0.00015399,2]
[319297719,1710645038008,-500.0,0.00015399,2]
[319297720,1710645038018,-522.33860142,0.00015399,2]
[319297722,1710645038027,-505.0144102,0.00015399,2]
[319297724,1710645038036,-628.51998547,0.00015399,2]
[319297727,1710645038045,-507.25586648,0.00015399,2]
[319297729,1710645038055,-518.0223634,0.00015399,2]
[319297731,1710645038064,-534.5869098,0.00015399,2]
[319297733,1710645038073,-500.0,0.00015399,2]
[319297734,1710645038082,-502.40049817,0.00015399,2]
[319297736,1710645038091,-500.0,0.00015399,2]
[319297738,1710645038101,-500.0,0.00015399,2]
[319297740,1710645038110,-500.0,0.00015399,2]
[319297742,1710645038119,-520.93103869,0.00015399,2]
[319297744,1710645038128,-504.16989695,0.00015399,2]
[319297746,1710645038138,-500.0,0.00015399,2]
[319297748,1710645038147,-280.64242532,0.00015399,2]
[319297750,1710645038155,-500.0,0.00015399,2]
[319297752,1710645038165,-500.0,0.00015399,2]
[319297754,1710645038174,-187.35224266,0.00015399,2]
[319297755,1710645038183,-500.0,0.00015399,2]
[319297756,1710645038192,-500.0,0.00015399,2]
[319297757,1710645038204,-500.0,0.00015399,2]
[319297758,1710645038213,-500.0,0.00015399,2]
[319297759,1710645038223,-500.0,0.00015399,2]